bitfinex-derivatives/quotes_SOLF0:USTF0_20250309
["timestamp","ask_amount","ask_price","bid_price","bid_amount"]
[1741516768487,7.3208,136.62,136.61,0.04635125]
[1741516769674,7.37011129,136.63,136.61,0.04635125]
[1741516769976,0.04931129,136.63,136.61,0.04635125]
[1741516770183,7.3208,136.62,136.61,0.04635125]
[1741516770582,27.88,136.62,136.61,0.04635125]
[1741516771383,35.2008,136.62,136.61,0.04635125]
[1741516773682,7.3223,136.6,136.55,1.9505]
[1741516773886,7.3223,136.6,136.56,9.2259]
[1741516774287,27.88,136.62,136.56,9.2259]
[1741516774488,27.88,136.62,136.57,7.3232]
[1741516774690,7.3218,136.61,136.57,7.3232]
[1741516774889,7.37769662,136.61,136.58,0.04906088]
[1741516775586,0.05589662,136.61,136.58,0.04906088]
[1741516775890,7.3219,136.6,136.58,0.04906088]
[1741516776083,0.05589662,136.61,136.58,0.04906088]
[1741516776584,7.37769662,136.61,136.58,7.37206088]
[1741516776785,0.05589662,136.61,136.58,0.04906088]
[1741516777190,7.3219,136.6,136.58,0.04906088]
[1741516777889,0.05589662,136.61,136.58,0.04906088]
[1741516778090,7.3224,136.59,136.58,0.04906088]
[1741516780095,7.3222,136.6,136.58,7.37196088]
[1741516780397,7.3222,136.6,136.58,0.04906088]
[1741516781494,7.3222,136.6,136.58,7.37206088]
[1741516781996,35.23749662,136.61,136.58,7.37206088]
[1741516782191,27.91589662,136.61,136.59,7.3223]
[1741516782694,27.91589662,136.61,136.48,241.64]
[1741516782894,27.86,136.61,136.52,2.0677]
[1741516783195,7.3238,136.57,136.52,2.0677]
[1741516783395,27.86,136.58,136.52,2.0677]
[1741516783998,7.3249,136.55,136.54,0.04815629]
[1741516784598,35.1849,136.55,136.54,0.04815629]
[1741516784799,7.327,136.51,136.49,2.0363]
[1741516785193,27.86,136.52,136.49,2.0363]
[1741516785701,27.86,136.52,136.5,7.3272]
[1741516786000,27.90831562,136.52,136.5,7.3272]
[1741516786304,27.90831562,136.52,136.49,2.08616466]
[1741516786500,27.90831562,136.52,136.49,9.41366466]
[1741516786694,27.90831562,136.52,136.49,2.08616466]
[1741516788500,27.90831562,136.52,136.5,7.3269]
[1741516789697,27.90831562,136.52,136.5,7.3273]
[1741516790706,27.90831562,136.52,136.51,7.3267]
[1741516791808,27.90831562,136.52,136.49,2.08616466]
[1741516792107,27.90831562,136.52,136.5,7.327]
[1741516792802,35.23481562,136.52,136.49,2.08616466]
[1741516793007,27.90831562,136.52,136.49,0.04986466]
[1741516793899,35.23481562,136.52,136.49,0.04986466]
[1741516794304,27.90831562,136.52,136.49,0.04986466]
[1741516795205,0.04831562,136.52,136.49,0.04986466]
[1741516795608,0.04831562,136.52,136.5,7.327]
[1741516796004,0.04831562,136.52,136.49,0.04986466]
[1741516796204,0.04831562,136.52,136.51,7.3267]
[1741516798313,0.04831562,136.52,136.49,0.04986466]
[1741516799911,7.37481562,136.52,136.49,7.37756466]
[1741516800611,7.37481562,136.52,136.49,0.04986466]
[1741516800612,7.3271,136.51,136.49,0.04986466]
[1741516800807,0.04831562,136.52,136.49,0.04986466]
[1741516801202,7.37501562,136.52,136.49,0.04986466]
[1741516801401,0.04831562,136.52,136.49,0.04986466]
[1741516802611,7.37491562,136.52,136.49,0.04986466]
[1741516802810,0.04831562,136.52,136.49,0.04986466]
[1741516804015,0.04831562,136.52,136.51,7.3267]
[1741516804716,27.88,136.56,136.54,7.3251]
[1741516805616,35.2042,136.56,136.49,27.88]
[1741516805811,35.25046128,136.56,136.54,0.05499501]
[1741516806016,35.25046128,136.56,136.49,27.88]
[1741516806212,35.25046128,136.56,136.54,0.05473593]
[1741516806416,35.25046128,136.56,136.53,7.3254]
[1741516806616,35.25046128,136.56,136.54,0.04661256]
[1741516806811,27.92626128,136.56,136.54,0.04661256]
[1741516807016,0.04626128,136.56,136.54,0.04661256]
[1741516807212,7.37056128,136.56,136.54,0.04661256]
[1741516807616,0.04626128,136.56,136.54,0.04661256]
[1741516809017,7.3246,136.55,136.54,0.04661256]
[1741516809215,35.2046,136.55,136.54,0.04661256]
[1741516811718,27.88,136.55,136.54,0.04661256]
[1741516812221,35.2046,136.55,136.54,0.04661256]
[1741516812722,27.88,136.55,136.48,3.8576]
[1741516812929,7.3266,136.52,136.48,11.1857]
[1741516813423,7.3266,136.52,136.49,7.3275]
[1741516813630,27.88,136.55,136.48,3.8576]
[1741516814029,27.88,136.55,136.5,0.04809694]
[1741516814030,0.04751737,136.53,136.5,0.04809694]
[1741516814230,7.3263,136.52,136.5,0.04809694]
[1741516815029,7.37341737,136.53,136.5,0.04809694]
[1741516815332,0.04751737,136.53,136.5,0.04809694]
[1741516816329,7.3266,136.52,136.5,0.04809694]
[1741516817232,0.04751737,136.53,136.5,0.04809694]
[1741516817933,7.37341737,136.53,136.5,0.04809694]
[1741516818135,0.04751737,136.53,136.5,0.04809694]
[1741516818536,0.04751737,136.53,136.5,7.37509694]
[1741516818931,0.04751737,136.53,136.5,0.04809694]
[1741516819235,7.3262,136.52,136.5,0.04809694]
[1741516820134,7.3267,136.51,136.5,0.04809694]
[1741516821326,35.2067,136.51,136.5,0.04809694]
[1741516821725,7.3289,136.47,136.44,3.9703]
[1741516822126,27.86,136.48,136.44,3.9703]
[1741516822325,35.1886,136.48,136.44,11.3004]
[1741516822730,35.1886,136.48,136.44,3.9703]
[1741516823036,0.05394399,136.47,136.45,0.04921424]
[1741516825029,0.05394399,136.47,136.46,7.3294]
[1741516825230,0.05394399,136.47,136.45,0.04921424]
[1741516825435,27.88,136.51,136.45,0.04921424]
[1741516825734,27.88,136.51,136.44,3.9703]
[1741516826632,0.05609819,136.49,136.46,0.05038234]
[1741516826839,7.38419819,136.49,136.46,0.05038234]
[1741516827039,27.88,136.48,136.46,0.05038234]
[1741516830035,27.88,136.48,136.46,7.37948234]
[1741516830239,27.88,136.48,136.46,0.05038234]
[1741516830541,0.05609819,136.49,136.48,7.3283]
[1741516833643,27.88,136.53,136.47,1.9914]
[1741516834339,27.88,136.53,136.5,7.3272]
[1741516834738,27.93561082,136.53,136.5,7.38077933]
[1741516835044,27.93561082,136.53,136.5,0.05357933]
[1741516835443,0.05561082,136.53,136.5,0.05357933]
[1741516835639,0.05561082,136.53,136.51,7.3263]
[1741516836043,0.05561082,136.53,136.5,0.05357933]
[1741516836343,0.05561082,136.53,136.52,7.3262]
[1741516836544,0.05561082,136.53,136.5,0.05357933]
[1741516837440,7.3267,136.51,136.5,0.05357933]
[1741516837635,35.1867,136.51,136.5,0.05357933]
[1741516839843,27.86,136.51,136.5,0.05357933]
[1741516840947,35.1867,136.51,136.5,0.05357933]
[1741516841147,27.86,136.51,136.5,0.05357933]
[1741516841550,27.86,136.51,136.5,7.38087933]
[1741516841848,27.86,136.51,136.5,0.05357933]
[1741516842250,27.86,136.51,136.5,7.38087933]
[1741516842643,27.86,136.51,136.5,0.05357933]
[1741516843946,27.86,136.51,136.5,7.38087933]
[1741516845546,0.05561082,136.53,136.52,7.3262]
[1741516846349,0.05561082,136.53,136.51,9.3658]
[1741516846652,0.05561082,136.53,136.51,2.0392]
[1741516846952,0.05561082,136.53,136.51,9.3657]
[1741516847946,0.05561082,136.53,136.51,2.0392]
[1741516848146,0.05561082,136.53,136.52,7.3262]
[1741516849552,0.05561082,136.53,136.51,9.3657]
[1741516851053,0.05561082,136.53,136.52,7.3262]
[1741516852147,0.05561082,136.53,136.51,2.0392]
[1741516852853,0.05561082,136.53,136.52,7.3262]
[1741516854454,0.05561082,136.53,136.51,2.0392]
[1741516854859,0.05561082,136.53,136.52,7.3262]
[1741516856051,241.78,136.6,136.51,2.0392]
[1741516856458,27.86,136.59,136.51,2.0392]
[1741516856653,27.86,136.59,136.58,7.323]
[1741516857048,29.69392698,136.62,136.54,27.86]
[1741516857256,0.0561776,136.6,136.57,0.05058922]
[1741516857456,29.69392698,136.62,136.57,27.91058922]
[1741516857855,29.69392698,136.62,136.61,7.3214]
[1741516858452,20.34502698,136.62,136.61,7.3214]
[1741516859053,20.34502698,136.62,136.6,7.37316909]
[1741516859554,20.34502698,136.62,136.61,7.3214]
[1741516860357,20.34502698,136.62,136.6,7.37326909]
[1741516860557,0.04852161,136.63,136.6,0.05136909]
[1741516862258,0.04852161,136.63,136.6,7.37316909]
[1741516862457,0.04852161,136.63,136.6,0.05136909]
[1741516863354,0.04852161,136.63,136.6,7.37296909]
[1741516864058,0.04852161,136.63,136.6,0.05136909]
[1741516864461,7.36922161,136.63,136.6,0.05136909]
[1741516865161,0.04852161,136.63,136.6,0.05136909]
[1741516865764,0.04852161,136.63,136.6,7.37306909]
[1741516867064,0.04852161,136.63,136.6,0.05136909]
[1741516867671,7.3214,136.61,136.6,0.05136909]
[1741516867960,35.1614,136.61,136.6,0.05136909]
[1741516868361,27.84,136.61,136.6,0.05136909]
[1741516868763,0.04852161,136.63,136.61,7.321]
[1741516868965,0.04852161,136.63,136.6,0.05136909]
[1741516869668,0.04852161,136.63,136.61,7.3209]
[1741516870271,0.04852161,136.63,136.6,0.05136909]
[1741516870470,0.04852161,136.63,136.62,7.3208]
[1741516871165,0.04852161,136.63,136.61,7.3213]
[1741516871971,0.04852161,136.63,136.6,0.05136909]
[1741516872162,0.04852161,136.63,136.62,7.3208]
[1741516872364,3.9617,136.71,136.6,1.99196909]
[1741516872564,27.84,136.7,136.6,1.99196909]
[1741516872764,27.84,136.7,136.6,1.9406]
[1741516873064,29.8973,136.73,136.68,7.3175]
[1741516873372,27.82,136.72,136.64,27.82]
[1741516873568,27.82,136.72,136.68,7.3172]
[1741516873767,0.04959065,136.69,136.68,7.3172]
[1741516874272,129.2519629,136.74,136.67,0.04684784]
[1741516874468,129.2519629,136.74,136.67,27.86684784]
[1741516875264,0.05033867,136.72,136.69,7.3167]
[1741516875464,0.05033867,136.72,136.67,27.82]
[1741516875669,0.05033867,136.72,136.69,0.0475828]
[1741516875864,7.3166,136.7,136.69,0.0475828]
[1741516876071,27.82,136.71,136.6,194.0]
[1741516876368,7.3196,136.65,136.6,7.3219]
[1741516876565,27.82,136.65,136.59,3.7977]
[1741516876964,7.3201,136.64,136.59,11.1199]
[1741516877165,27.82,136.65,136.59,3.7977]
[1741516877368,0.05352921,136.63,136.6,0.05579525]
[1741516877567,27.82,136.62,136.6,0.05579525]
[1741516877767,35.1412,136.62,136.6,0.05579525]
[1741516878374,27.82,136.62,136.6,0.05579525]
[1741516878570,7.3214,136.61,136.6,0.05579525]
[1741516879073,27.82,136.62,136.6,0.05579525]
[1741516879276,35.1409,136.62,136.6,0.05579525]
[1741516879465,27.82,136.62,136.6,0.05579525]
[1741516880373,0.05352921,136.63,136.6,0.05579525]
[1741516880679,1.9733,136.73,136.61,27.82]
[1741516880874,7.3153,136.73,136.62,2.0325]
[1741516881069,79.30807724,136.74,136.62,2.0325]
[1741516881272,7.3162,136.71,136.63,1.9758]
[1741516881472,27.82,136.7,136.63,1.9758]
[1741516881673,27.82,136.7,136.65,0.05145338]
[1741516881873,0.05514463,136.68,136.65,0.05145338]
[1741516882571,7.3185,136.67,136.65,0.05145338]
[1741516882771,27.82,136.67,136.65,0.05145338]
[1741516883768,27.82,136.67,136.65,7.37035338]
[1741516884371,27.82,136.67,136.66,7.3187]
[1741516884577,27.82,136.67,136.65,0.05145338]
[1741516886873,0.05514463,136.68,136.65,0.05145338]
[1741516888372,0.05514463,136.68,136.67,7.3182]
[1741516888577,0.05514463,136.68,136.65,0.05145338]
[1741516890178,0.05514463,136.68,136.65,7.37045338]
[1741516890571,0.05514463,136.68,136.65,0.05145338]
[1741516891777,0.05514463,136.68,136.67,7.3182]
[1741516892380,0.05514463,136.68,136.65,0.05145338]
[1741516893071,0.05514463,136.68,136.65,7.37025338]
[1741516893975,0.05514463,136.68,136.65,0.05145338]
[1741516894882,27.87514463,136.68,136.65,0.05145338]
[1741516895782,7.3187,136.66,136.65,0.05145338]
[1741516896078,27.87514463,136.68,136.57,29.7437]
[1741516896276,7.3198,136.64,136.59,7.3221]
[1741516896583,27.82,136.64,136.57,1.9237]
[1741516897082,27.82,136.64,136.61,7.3213]
[1741516897285,0.05141781,136.62,136.61,7.3213]
[1741516901395,0.05141781,136.62,136.59,0.05623152]
[1741516902786,35.1418,136.61,136.59,0.05623152]
[1741516902986,27.82,136.61,136.59,0.05623152]
[1741516903182,7.3219,136.6,136.59,0.05623152]
[1741516905688,7.3234,136.58,136.53,2.034]
[1741516905892,27.82,136.58,136.51,3.9047]
[1741516906302,7.3239,136.57,136.51,3.9047]
[1741516906593,27.82,136.58,136.51,3.9047]
[1741516906796,0.049034,136.55,136.53,0.05447812]
[1741516907188,0.049034,136.55,136.54,7.3249]
[1741516907393,0.049034,136.55,136.53,0.05447812]
[1741516907898,0.049034,136.55,136.54,7.3251]
[1741516910994,27.82,136.6,136.57,7.3232]
[1741516911997,27.87600216,136.6,136.57,7.3232]
[1741516912196,27.87600216,136.6,136.57,7.37810979]
[1741516913704,27.87600216,136.6,136.57,0.05490979]
[1741516913905,7.3227,136.59,136.57,0.05490979]
[1741516915003,27.87600216,136.6,136.57,0.05490979]
[1741516915702,7.3227,136.59,136.57,0.05490979]
[1741516916003,7.3224,136.59,136.57,0.05490979]
[1741516916303,27.87600216,136.6,136.57,0.05490979]
[1741516916905,7.323,136.58,136.57,0.05490979]
[1741516917202,27.87600216,136.6,136.57,0.05490979]
[1741516917405,27.87600216,136.6,136.57,7.37800979]
[1741516917805,35.19800216,136.6,136.57,0.05490979]
[1741516919801,27.87600216,136.6,136.57,0.05490979]
[1741516920603,7.323,136.58,136.57,0.05490979]
[1741516920998,27.87600216,136.6,136.51,3.9047]
[1741516921199,2.0431,136.59,136.51,3.9047]
[1741516921401,2.0431,136.59,136.52,7.3259]
[1741516921594,2.0431,136.59,136.51,2.0122]
[1741516921802,4.0097,136.59,136.51,2.0122]
[1741516922004,7.3243,136.56,136.52,7.3261]
[1741516922205,7.37331438,136.56,136.54,0.05230201]
[1741516922405,0.04901438,136.56,136.54,0.05230201]
[1741516923603,0.04901438,136.56,136.55,7.3246]
[1741516924005,0.04901438,136.56,136.54,0.05230201]
[1741516924707,0.04901438,136.56,136.54,7.37720201]
[1741516925506,7.37321438,136.56,136.54,0.05230201]
[1741516925907,7.3246,136.55,136.54,0.05230201]
[1741516927007,0.04901438,136.56,136.54,0.05230201]
[1741516927208,7.37341438,136.56,136.54,0.05230201]
[1741516927805,0.04901438,136.56,136.48,2.0013]
[1741516928302,7.3256,136.54,136.48,2.0013]
[1741516928508,27.82,136.53,136.48,2.0013]
[1741516928900,27.82,136.53,136.49,0.04737956]
[1741516929107,0.0472096,136.52,136.49,0.04737956]
[1741516929308,0.0472096,136.52,136.5,7.3272]
[1741516929708,0.0472096,136.52,136.49,0.04737956]
[1741516929910,0.0472096,136.52,136.49,7.37487956]
[1741516930815,0.0472096,136.52,136.49,0.04737956]
[1741516931910,0.0472096,136.52,136.5,7.3268]
[1741516932109,0.0472096,136.52,136.49,0.04737956]
[1741516932511,0.0472096,136.52,136.51,7.3267]
[1741516935017,4.0097,136.59,136.5,2.0258]
[1741516935317,27.82,136.58,136.5,2.0258]
[1741516935715,35.1434,136.58,136.54,7.3249]
[1741516936212,0.05097718,136.57,136.55,7.37184865]
[1741516936611,0.05097718,136.57,136.56,7.3241]
[1741516937007,27.82,136.61,136.55,0.04734865]
[1741516937909,7.3229,136.59,136.55,7.37184865]
[1741516938114,27.82,136.61,136.55,0.04734865]
[1741516938418,0.04795159,136.58,136.55,0.04734865]
[1741516938809,7.3239,136.57,136.55,0.04734865]
[1741516939012,35.1439,136.57,136.55,0.04734865]
[1741516939206,27.82,136.57,136.55,0.04734865]
[1741516939614,35.1439,136.57,136.55,0.04734865]
[1741516940013,7.3241,136.56,136.55,0.04734865]
[1741516940408,27.82,136.57,136.55,0.04734865]
[1741516940608,35.1437,136.57,136.55,0.04734865]
[1741516940818,27.82,136.57,136.55,0.04734865]
[1741516942313,35.1436,136.57,136.55,0.04734865]
[1741516942913,27.82,136.57,136.55,0.04734865]
[1741516943421,27.82,136.57,136.55,7.37184865]
[1741516943821,27.82,136.57,136.55,0.04734865]
[1741516944521,27.82,136.57,136.55,7.37174865]
[1741516944719,27.82,136.57,136.55,0.04734865]
[1741516945718,35.144,136.57,136.55,0.04734865]
[1741516945921,27.82,136.57,136.55,0.04734865]
[1741516946320,7.3241,136.56,136.55,0.04734865]
[1741516947324,29.8158,136.57,136.49,7.3275]
[1741516947520,29.8158,136.57,136.46,29.8721]
[1741516948021,7.3248,136.55,136.51,7.3267]
[1741516948218,27.82,136.54,136.51,7.3267]
[1741516948420,27.87506699,136.54,136.52,0.05074125]
[1741516949325,0.05506699,136.54,136.53,7.3257]
[1741516949923,0.05506699,136.54,136.52,0.05074125]
[1741516950626,0.05506699,136.54,136.52,7.37644125]
[1741516951125,0.05506699,136.54,136.52,0.05074125]
[1741516951426,7.38046699,136.54,136.52,0.05074125]
[1741516952721,0.05506699,136.54,136.52,0.05074125]
[1741516952922,7.3257,136.53,136.52,0.05074125]
[1741516953128,0.05506699,136.54,136.52,0.05074125]
[1741516953820,0.05506699,136.54,136.47,7.3286]
[1741516954020,0.05506699,136.54,136.46,2.0521]
[1741516954425,0.05506699,136.54,136.5,7.3272]
[1741516954827,0.05506699,136.54,136.46,2.0521]
[1741516955129,7.38046699,136.54,136.51,7.3266]
[1741516955527,0.05506699,136.54,136.51,7.3266]
[1741516955724,0.05506699,136.54,136.52,7.3262]
[1741516955926,0.05506699,136.54,136.49,0.04754507]
[1741516956125,7.38016699,136.54,136.49,0.04754507]
[1741516956328,7.38016699,136.54,136.5,7.327]
[1741516956828,7.326,136.53,136.5,7.3271]
[1741516957230,7.326,136.53,136.49,0.04754507]
[1741516957430,0.05506699,136.54,136.49,0.04754507]
[1741516957623,7.38036699,136.54,136.49,0.04754507]
[1741516957822,0.05506699,136.54,136.49,0.04754507]
[1741516958223,0.05506699,136.54,136.51,7.3265]
[1741516958529,0.05506699,136.54,136.49,0.04754507]
[1741516958923,0.05506699,136.54,136.51,7.3263]
[1741516960332,0.05506699,136.54,136.49,0.04754507]
[1741516960831,7.3259,136.53,136.49,0.04754507]
[1741516961037,27.82,136.52,136.49,0.04754507]
[1741516962430,7.327,136.51,136.49,0.04754507]
[1741516962628,27.82,136.52,136.49,0.04754507]
[1741516962825,27.82,136.52,136.43,5.8303]
[1741516963027,7.3285,136.48,136.44,7.3301]
[1741516963223,35.1485,136.48,136.44,7.3301]
[1741516963933,0.05330612,136.47,136.45,0.04949439]
[1741516964532,0.05330612,136.47,136.45,7.37899439]
[1741516965332,0.05330612,136.47,136.45,0.04949439]
[1741516965635,0.05330612,136.47,136.46,7.3294]
[1741516966637,0.05330612,136.47,136.45,7.37919439]
[1741516966934,0.05330612,136.47,136.45,0.04949439]
[1741516967437,0.05330612,136.47,136.46,7.3294]
[1741516972141,0.05330612,136.47,136.45,0.04949439]
[1741516972342,0.05330612,136.47,136.46,7.3294]
[1741516973144,0.05330612,136.47,136.45,0.04949439]
[1741516973739,0.05330612,136.47,136.45,7.37919439]
[1741516974446,0.05330612,136.47,136.45,0.04949439]
[1741516975142,0.05330612,136.47,136.45,7.37919439]
[1741516976246,0.05330612,136.47,136.45,0.04949439]
[1741516977451,7.38250612,136.47,136.45,0.04949439]
[1741516977955,7.3294,136.46,136.45,0.04949439]
[1741516978351,0.05330612,136.47,136.45,0.04949439]
[1741516978950,7.38270612,136.47,136.45,0.04949439]
[1741516980555,7.3294,136.46,136.45,0.04949439]
[1741516980853,0.05330612,136.47,136.45,0.04949439]
[1741516981251,7.38250612,136.47,136.45,0.04949439]
[1741516982247,0.05330612,136.47,136.46,7.3294]
[1741516984855,0.05330612,136.47,136.45,0.04949439]
[1741516985157,27.82,136.46,136.45,0.04949439]
[1741516986548,35.1494,136.46,136.45,0.04949439]
[1741516989654,27.82,136.46,136.4,1.9296]
[1741516990255,7.3304,136.45,136.41,7.3318]
[1741516990456,27.82,136.46,136.41,7.3318]
[1741516990656,27.82,136.46,136.42,0.05159006]
[1741516990858,35.1497,136.46,136.42,0.05159006]
[1741516992969,7.3306,136.44,136.42,0.05159006]
[1741516993160,27.82,136.43,136.42,0.05159006]
[1741516993357,7.3318,136.42,136.34,1.986]
[1741516993666,27.82,136.43,136.34,1.986]
[1741516993865,27.82,136.43,136.39,7.3327]
[1741516994059,27.82,136.42,136.34,1.986]
[1741516994256,27.82,136.43,136.34,29.806]
[1741516994461,27.82,136.43,136.4,7.3322]
[1741516994660,0.04621009,136.4,136.34,29.806]
[1741516994862,0.04621009,136.4,136.38,7.3334]
[1741516995068,35.1511,136.43,136.4,0.0488244]
[1741516995363,35.20574953,136.43,136.4,0.0488244]
[1741516995558,27.87464953,136.43,136.4,0.0488244]
[1741516997368,7.3317,136.42,136.4,0.0488244]
[1741516997570,27.87464953,136.43,136.4,0.0488244]
[1741516998471,7.3319,136.42,136.4,0.0488244]
[1741516998673,27.87464953,136.43,136.4,0.0488244]
[1741516998966,7.332,136.42,136.4,0.0488244]
[1741516999272,27.87464953,136.43,136.4,0.0488244]
[1741516999471,7.3316,136.42,136.4,0.0488244]
[1741517000167,7.3321,136.41,136.4,0.0488244]
[1741517000471,27.87464953,136.43,136.4,0.0488244]
[1741517000766,7.3321,136.41,136.4,0.0488244]
[1741517003077,27.87464953,136.43,136.34,1.986]
[1741517003078,7.3338,136.38,136.34,1.986]
[1741517003264,27.82,136.38,136.34,1.986]
[1741517003869,27.82,136.38,136.35,7.335]
[1741517004068,27.82,136.38,136.35,7.3867217]
[1741517004069,0.0490265,136.37,136.35,7.3867217]
[1741517004565,0.0490265,136.37,136.35,0.0517217]
[1741517005171,0.0490265,136.37,136.24,80.43645014]
[1741517005479,27.82,136.38,136.26,5.7434]
[1741517005671,35.1538,136.38,136.32,7.3366]
[1741517005873,27.82,136.38,136.28,27.82]
[1741517006269,27.82,136.38,136.32,7.3365]
[1741517006482,0.0517695,136.34,136.32,0.05481775]
[1741517010889,0.0517695,136.34,136.32,7.39161775]
[1741517011180,0.0517695,136.34,136.32,0.05481775]
[1741517011482,7.3880695,136.34,136.32,0.05481775]
[1741517013483,0.0517695,136.34,136.32,0.05481775]
[1741517014075,0.0517695,136.34,136.32,7.39131775]
[1741517015786,0.0517695,136.34,136.32,0.05481775]
[1741517016288,7.3876695,136.34,136.32,0.05481775]
[1741517017979,0.0517695,136.34,136.32,0.05481775]
[1741517018385,7.3879695,136.34,136.32,0.05481775]
[1741517018586,0.0517695,136.34,136.32,0.05481775]
[1741517020090,7.3364,136.33,136.32,0.05481775]
[1741517020888,7.3876695,136.34,136.32,0.05481775]
[1741517022993,0.0517695,136.34,136.32,0.05481775]
[1741517023195,7.3364,136.33,136.32,0.05481775]
[1741517023991,7.3878695,136.34,136.32,0.05481775]
[1741517025191,0.0517695,136.34,136.32,0.05481775]
[1741517025391,27.8917695,136.34,136.32,7.39141775]
[1741517026292,7.3364,136.33,136.32,0.05481775]
[1741517026593,27.8917695,136.34,136.26,5.7434]
[1741517026793,7.337,136.32,136.29,7.3386]
[1741517027695,7.38565246,136.32,136.29,7.37454928]
[1741517027891,27.84,136.31,136.29,0.03594928]
[1741517028098,7.338,136.3,136.26,7.3399]
[1741517028297,27.84,136.31,136.19,33.6252]
[1741517028592,7.3389,136.29,136.19,33.6252]
[1741517028797,27.84,136.28,136.19,33.6252]
[1741517029296,27.84,136.28,136.25,7.3407]
[1741517029697,27.89246288,136.28,136.25,7.3407]
[1741517030091,27.89246288,136.28,136.27,7.3396]
[1741517030291,27.84,136.33,136.22,27.84]
[1741517030493,27.84,136.33,136.26,0.05210674]
[1741517031298,27.84,136.33,136.31,7.3373]
[1741517031696,27.88893873,136.33,136.31,7.38597312]
[1741517032398,27.88893873,136.33,136.31,0.04867312]
[1741517033001,27.88893873,136.33,136.31,7.38607312]
[1741517033902,27.88893873,136.33,136.31,0.04867312]
[1741517034103,0.04893873,136.33,136.32,7.337]
[1741517034704,27.84,136.37,136.31,0.04867312]
[1741517034899,29.59762237,136.42,136.31,0.04867312]
[1741517035098,29.59762237,136.42,136.31,27.84]
[1741517035099,27.84,136.39,136.31,27.84]
[1741517035299,5.58508331,136.38,136.37,7.3342]
[1741517035701,27.84,136.39,136.37,7.3342]
[1741517035999,27.89486862,136.39,136.37,7.3342]
[1741517036200,0.05486862,136.39,136.37,7.3342]
[1741517036405,0.05486862,136.39,136.38,7.3337]
[1741517036806,5.90511609,136.39,136.36,0.05075721]
[1741517037201,5.58989047,136.38,136.36,0.05075721]
[1741517037400,12.92419047,136.37,136.36,0.05075721]
[1741517037601,5.58989047,136.37,136.36,0.05075721]
[1741517038098,11.44013794,136.37,136.36,0.05075721]
[1741517038902,11.44255347,136.37,136.36,0.05075721]
[1741517040509,11.44255347,136.37,136.36,7.38555721]
[1741517040701,5.85024747,136.37,136.36,7.38555721]
[1741517041808,5.85024747,136.37,136.36,0.05075721]
[1741517042307,11.44929803,136.37,136.36,0.05075721]
[1741517043411,11.44999708,136.37,136.36,0.05075721]
[1741517043905,18.78429708,136.37,136.36,0.05075721]
[1741517046105,18.78723587,136.37,136.36,0.05075721]
[1741517047009,18.78723587,136.37,136.29,2.0436]
[1741517047010,11.45293587,136.37,136.29,2.0436]
[1741517047210,5.6026884,136.36,136.29,2.0436]
[1741517047406,46.70863587,136.35,136.31,7.3371]
[1741517047610,5.6026884,136.34,136.31,7.3371]
[1741517047807,12.9393884,136.33,136.29,9.3819]
[1741517048008,5.6030836,136.32,136.31,0.0506444]
[1741517048405,11.45333107,136.32,136.31,0.0506444]
[1741517049608,18.79033107,136.32,136.31,0.0506444]
[1741517049905,11.45333107,136.32,136.31,0.0506444]
[1741517050706,11.45333107,136.32,136.31,7.3881444]
[1741517050910,11.45333107,136.32,136.31,0.0506444]
[1741517053710,5.85024747,136.32,136.31,0.0506444]
[1741517053908,11.45197246,136.32,136.31,0.0506444]
[1741517054504,5.85024747,136.32,136.31,7.3881444]
[1741517055813,11.45265729,136.32,136.31,7.3881444]
[1741517056015,5.85024747,136.32,136.31,7.3881444]
[1741517056606,5.85024747,136.32,136.31,0.0506444]
[1741517056812,18.790326,136.32,136.31,0.0506444]
[1741517057012,11.453326,136.32,136.31,0.0506444]
[1741517057214,18.790326,136.32,136.31,0.0506444]
[1741517057615,11.453326,136.32,136.31,0.0506444]
[1741517057914,18.790326,136.32,136.31,0.0506444]
[1741517059514,18.78576065,136.32,136.31,0.0506444]
[1741517060113,11.44876065,136.32,136.27,11.2449]
[1741517060411,5.814,136.37,136.27,11.2449]
[1741517060412,39.60876065,136.31,136.27,11.2449]
[1741517060617,5.59851318,136.3,136.27,11.2449]
[1741517060917,11.44876065,136.29,136.27,11.2449]
[1741517061112,5.85024747,136.29,136.27,3.9053]